fUSD/lending_fUSD_20251031
["ID","MTS","AMOUNT","RATE_DAILY","PERIOD"]
[392760758,1761923446100,-500.0,0.00017808,2]
[392760759,1761923446109,-1000.0,0.00017811,2]
[392760760,1761923446119,-1000.0,0.00017829,2]
[392760761,1761923446128,-1000.0,0.00017835,2]
[392760762,1761923446136,-154.62489271,0.00017849,2]
[392760763,1761923446146,-1000.0,0.00017855,2]
[392760764,1761923446154,-1000.0,0.00017856,2]
[392760765,1761923446164,-603.0,0.00017868,2]
[392760766,1761923446173,-1081.0,0.00017868,2]
[392760767,1761923446182,-1425.0,0.00017876,2]
[392760768,1761923446192,-162.64117101,0.00017878,2]
[392760769,1761923446201,-1000.0,0.00017888,2]
[392760770,1761923446210,-1425.0,0.00017893,2]
[392760771,1761923446219,-1425.0,0.00017896,2]
[392760772,1761923446228,-150.0,0.000179,5]
[392760773,1761923446237,-150.0,0.000179,5]
[392760774,1761923446246,-1594.0,0.000179,2]
[392760775,1761923446255,-1314.0,0.000179,2]
[392760776,1761923446264,-819.0,0.000179,2]
[392760777,1761923446273,-1271.0,0.000179,2]
[392760778,1761923446282,-1000.0,0.00017901,2]
[392760779,1761923446290,-6630.0,0.00017901,2]
[392760780,1761923446299,-6468.0,0.00017901,2]
[392760781,1761923446308,-559.0,0.00017901,2]
[392760782,1761923446317,-1211.27850813,0.00017905,2]
[392760783,1761923446327,-150.0,0.00017913,2]
[392760784,1761923446336,-1425.0,0.00017918,2]
[392760785,1761923446345,-1129.04841495,0.00017923,2]
[392760786,1761923446354,-537.24618507,0.00017938,2]
[392760787,1761923446363,-150.0,0.00017938,2]
[392760788,1761923446372,-500.0,0.00017945,2]
[392760789,1761923446381,-1425.0,0.00017969,2]
[392760790,1761923446390,-1000.0,0.0001797,2]
[392760791,1761923446399,-500.0,0.00017973,2]
[392760792,1761923446408,-312.1727886,0.00017973,2]
[392760793,1761923446417,-500.0,0.00017973,2]
[392760794,1761923446426,-500.0,0.00017973,2]
[392760795,1761923446435,-314.79,0.00017973,2]
[392760796,1761923446444,-500.0,0.00017973,2]
[392760797,1761923446454,-510.33341494,0.00017973,2]
[392760798,1761923446463,-500.0,0.00017973,2]
[392760799,1761923446473,-500.0,0.00017973,2]
[392760800,1761923446482,-500.0,0.00017973,2]
[392760801,1761923446491,-592.65085401,0.00017973,2]
[392760802,1761923446500,-207.74721825,0.00017973,2]
[392760803,1761923446510,-500.0,0.00017973,2]
[392760804,1761923446519,-514.21510557,0.00017973,2]
[392760805,1761923446528,-500.0,0.00017973,2]
[392760806,1761923446538,-500.0,0.00017973,2]
[392760807,1761923446547,-500.0,0.00017973,2]
[392760808,1761923446557,-155.0,0.00017999,2]
[392760809,1761923446567,-246.37342329,0.00017999,2]
[392760810,1761923446577,-300.0,0.00017999,2]
[392760811,1761923446586,-300.0,0.00017999,2]
[392760812,1761923446595,-300.0,0.00017999,2]
[392760813,1761923446605,-300.0,0.00017999,2]
[392760814,1761923446614,-300.0,0.00017999,2]
[392760816,1761923446623,-300.0,0.00018,3]
[392760817,1761923446632,-300.0,0.00018,3]
[392760819,1761923446641,-241.087998,0.00018,2]
[392760821,1761923446651,-82525.1849787,0.00018,2]
[392760823,1761923446660,-150.0,0.00018,2]
[392760825,1761923446669,-150.0,0.00018,2]
[392760827,1761923446678,-150.0,0.00018,2]
[392760829,1761923446688,-150.0,0.00018,2]
[392760831,1761923446697,-150.0,0.00018,2]
[392760833,1761923446706,-150.0,0.00018,2]
[392760835,1761923446717,-150.0,0.00018,2]
[392760838,1761923446726,-150.0,0.00018,2]
[392760841,1761923446735,-2891.98806574,0.00018,2]
[392760844,1761923446748,-528.01193426,0.00018,2]
[392760847,1761923446757,-607.0,0.00018,2]
[392760850,1761923446769,-573.0,0.00018,2]
[392760854,1761923446778,-820.0,0.00018,2]
[392760856,1761923446787,-157.899438,0.00018,2]
[392760859,1761923446796,-151.0,0.00018,2]
[392760863,1761923446806,-278.12884,0.00018,2]
[392760864,1761923446815,-207.958369,0.00018,2]
[392760866,1761923446824,-151.0,0.00018,2]
[392760868,1761923446834,-151.0,0.00018,2]
[392760870,1761923446843,-151.0,0.00018,2]
[392760872,1761923446853,-151.0,0.00018,2]
[392760874,1761923446862,-155.115704,0.00018,2]
[392760876,1761923446872,-151.0,0.00018,2]
[392760878,1761923446881,-151.0,0.00018,2]
[392760881,1761923446891,-155.426636,0.00018,2]
[392760882,1761923446900,-151.0,0.00018,2]
[392760884,1761923446909,-151.0,0.00018,2]
[392760886,1761923446919,-152.326873,0.00018,2]
[392760888,1761923446929,-151.0,0.00018,2]
[392760891,1761923446938,-151.0,0.00018,2]
[392760893,1761923446948,-151.0,0.00018,2]
[392760894,1761923446957,-151.0,0.00018,2]
[392760896,1761923446967,-151.0,0.00018,2]
[392760898,1761923446980,-151.0,0.00018,2]
[392760900,1761923446989,-301.241504,0.00018,2]
[392760902,1761923446998,-151.0,0.00018,2]
[392760904,1761923447007,-151.0,0.00018,2]
[392760906,1761923447018,-151.0,0.00018,2]
[392760908,1761923447028,-151.0,0.00018,2]
[392760910,1761923447037,-151.0,0.00018,2]
[392760912,1761923447048,-159.604176,0.00018,2]
[392760914,1761923447058,-151.0,0.00018,2]
[392760917,1761923447067,-151.0,0.00018,2]
[392760918,1761923447077,-199.82947,0.00018,2]
[392760921,1761923447087,-151.0,0.00018,2]
[392760922,1761923447096,-151.0,0.00018,2]
[392760924,1761923447105,-152.606297,0.00018,2]
[392760926,1761923447114,-151.0,0.00018,2]
[392760928,1761923447123,-151.0,0.00018,2]
[392760930,1761923447132,-151.0,0.00018,2]
[392760932,1761923447141,-151.0,0.00018,2]
[392760934,1761923447150,-151.0,0.00018,2]
[392760936,1761923447159,-261.27075,0.00018,2]
[392760938,1761923447171,-151.0,0.00018,2]
[392760941,1761923447181,-151.0,0.00018,2]
[392760942,1761923447190,-241.635569,0.00018,2]
[392760943,1761923447199,-154.610677,0.00018,2]
[392760944,1761923447210,-151.0,0.00018,2]
[392760945,1761923447219,-152.799412,0.00018,2]
[392760946,1761923447229,-151.0,0.00018,2]
[392760947,1761923447238,-546.122706,0.00018,2]
[392760948,1761923447247,-151.0,0.00018,2]
[392760949,1761923447256,-155.684399,0.00018,2]
[392760950,1761923447267,-546.122706,0.00018,2]
[392760951,1761923447276,-546.122706,0.00018,2]
[392760952,1761923447285,-166.03466,0.00018,2]
[392760953,1761923447295,-546.122706,0.00018,2]
[392760954,1761923447304,-156.257748,0.00018,2]
[392760955,1761923447313,-296.085232,0.00018,2]
[392760956,1761923447323,-151.0,0.00018,2]
[392760957,1761923447332,-151.0,0.00018,2]
[392760958,1761923447341,-151.0,0.00018,2]
[392760959,1761923447350,-151.0,0.00018,2]
[392760960,1761923447360,-172.510592,0.00018,2]
[392760961,1761923447369,-151.0,0.00018,2]
[392760962,1761923447378,-151.0,0.00018,2]
[392760963,1761923447387,-151.0,0.00018,2]
[392760964,1761923447397,-151.0,0.00018,2]
[392760965,1761923447406,-154.216179,0.00018,2]
[392760966,1761923447415,-264.821166,0.00018,2]
[392760967,1761923447424,-151.0,0.00018,2]
[392760968,1761923447434,-151.0,0.00018,2]
[392760969,1761923447443,-154.903487,0.00018,2]
[392760970,1761923447452,-151.777868,0.00018,2]
[392760971,1761923447461,-163.635493,0.00018,2]
[392760972,1761923447470,-151.0,0.00018,2]
[392760973,1761923447479,-151.0,0.00018,2]
[392760974,1761923447488,-151.0,0.00018,2]
[392760975,1761923447497,-163.635493,0.00018,2]
[392760976,1761923447506,-156.630616,0.00018,2]
[392760977,1761923447516,-151.0,0.00018,2]
[392760978,1761923447526,-151.0,0.00018,2]
[392760979,1761923447535,-163.635493,0.00018,2]
[392760980,1761923447544,-151.0,0.00018,2]
[392760981,1761923447553,-151.0,0.00018,2]
[392760982,1761923447562,-163.635493,0.00018,2]
[392760983,1761923447572,-151.0,0.00018,2]
[392760984,1761923447582,-151.0,0.00018,2]
[392760985,1761923447591,-151.0,0.00018,2]
[392760986,1761923447600,-882.765861,0.00018,2]
[392760987,1761923447610,-151.0,0.00018,2]
[392760988,1761923447619,-151.0,0.00018,2]
[392760989,1761923447628,-151.0,0.00018,2]
[392760990,1761923447639,-262.123642,0.00018,2]
[392760991,1761923447648,-151.0,0.00018,2]
[392760992,1761923447657,-152.528179,0.00018,2]
[392760993,1761923447667,-151.0,0.00018,2]
[392760994,1761923447677,-151.0,0.00018,2]
[392760995,1761923447687,-151.0,0.00018,2]
[392760996,1761923447696,-151.0,0.00018,2]
[392760997,1761923447705,-151.0,0.00018,2]
[392760998,1761923447715,-151.0,0.00018,2]
[392760999,1761923447725,-151.0,0.00018,2]
[392761000,1761923447735,-255.705524,0.00018,2]
[392761001,1761923447744,-151.0,0.00018,2]
[392761002,1761923447754,-153.300193,0.00018,2]
[392761003,1761923447764,-151.0,0.00018,2]
[392761004,1761923447774,-151.0,0.00018,2]
[392761005,1761923447783,-429.861942,0.00018,2]
[392761006,1761923447793,-151.0,0.00018,2]
[392761007,1761923447802,-429.861942,0.00018,2]
[392761008,1761923447812,-151.0,0.00018,2]
[392761009,1761923447822,-429.861942,0.00018,2]
[392761010,1761923447832,-151.0,0.00018,2]
[392761011,1761923447841,-429.861942,0.00018,2]
[392761012,1761923447851,-151.0,0.00018,2]
[392761013,1761923447861,-151.0,0.00018,2]
[392761014,1761923447871,-151.0,0.00018,2]
[392761015,1761923447881,-151.0,0.00018,2]
[392761016,1761923447891,-151.0,0.00018,2]
[392761017,1761923447901,-180.298819,0.00018,2]
[392761018,1761923447911,-209.653267,0.00018,2]
[392761019,1761923447921,-151.0,0.00018,2]
[392761020,1761923447931,-204.743211,0.00018,2]
[392761021,1761923447940,-151.0,0.00018,2]
[392761022,1761923447951,-233.343592,0.00018,2]
[392761023,1761923447960,-233.343592,0.00018,2]
[392761024,1761923447971,-151.0,0.00018,2]
[392761025,1761923447983,-151.0,0.00018,2]
[392761026,1761923447993,-233.343592,0.00018,2]
[392761027,1761923448002,-233.343592,0.00018,2]
[392761028,1761923448013,-151.0,0.00018,2]
[392761029,1761923448025,-151.0,0.00018,2]
[392761030,1761923448040,-151.0,0.00018,2]
[392761031,1761923448058,-151.0,0.00018,2]
[392761032,1761923448069,-151.0,0.00018,2]
[392761033,1761923448079,-151.0,0.00018,2]
[392761034,1761923448089,-195.393149,0.00018,2]
[392761035,1761923448099,-273.527252,0.00018,2]
[392761036,1761923448109,-273.527252,0.00018,2]
[392761037,1761923448120,-273.527252,0.00018,2]
[392761038,1761923448130,-273.527252,0.00018,2]
[392761039,1761923448140,-266.969215,0.00018,2]
[392761040,1761923448150,-155.805714,0.00018,2]
[392761041,1761923448160,-266.847834,0.00018,2]
[392761042,1761923448170,-442.690934,0.00018,2]
[392761043,1761923448180,-151.0,0.00018,2]
[392761044,1761923448190,-442.690934,0.00018,2]
[392761045,1761923448200,-153.32508,0.00018,2]
[392761046,1761923448210,-442.690934,0.00018,2]
[392761047,1761923448221,-571.210322,0.00018,2]
[392761048,1761923448231,-151.0,0.00018,2]
[392761049,1761923448241,-154.906811,0.00018,2]
[392761050,1761923448251,-571.210322,0.00018,2]
[392761051,1761923448261,-151.0,0.00018,2]
[392761052,1761923448271,-571.210322,0.00018,2]
[392761053,1761923448281,-442.690934,0.00018,2]
[392761054,1761923448291,-571.210322,0.00018,2]
[392761055,1761923448301,-603.0,0.00018005,2]
[392761056,1761923448311,-1081.0,0.00018005,2]
[392761057,1761923448321,-225.60039628,0.00018036,4]
[392761058,1761923448331,-500.0,0.00018082,2]
[392761059,1761923448341,-1000.0,0.00018082,2]
[392761060,1761923448351,-1761.74119247,0.000181,2]
[392761061,1761923448361,-273.26149957,0.00018111,2]
[392761062,1761923448372,-612.94734136,0.00018142,2]
[392761063,1761923448382,-1099.0522406,0.00018142,2]
[392761064,1761923448392,-500.0,0.00018219,2]
[392761065,1761923448402,-5533.6053634,0.00018225,2]
[392761066,1761923448412,-817.2521132,0.00018225,2]
[392761067,1761923448422,-500.0,0.00018356,2]
[392761068,1761923448432,-3270.29,0.00018356,2]
[392761069,1761923448442,-823.0,0.00018405,2]
[392761070,1761923448452,-500.0,0.00018493,2]
[392761071,1761923448462,-1000.0,0.00018521,2]
[392761072,1761923448472,-774.5399141,0.00018521,2]
[392761073,1761923448482,-1000.0,0.00018521,2]
[392761074,1761923448492,-1000.0,0.00018521,2]
[392761075,1761923448502,-1000.0,0.00018521,2]
[392761076,1761923448512,-500.0,0.00018521,2]
[392761077,1761923448522,-1002.71672686,0.00018521,2]
[392761078,1761923448532,-362.48496778,0.00018521,2]
[392761079,1761923448542,-1000.0,0.00018521,2]
[392761080,1761923448551,-1000.0,0.00018521,2]
[392761081,1761923448561,-1000.0,0.00018521,2]
[392761082,1761923448571,-151.23,0.00018557,2]
[392761083,1761923448581,-150.0,0.00018557,2]
[392761084,1761923448592,-150.0,0.00018557,2]
[392761085,1761923448602,-500.0,0.0001863,2]
[392761086,1761923448613,-219.05,0.0001863,2]
[392761087,1761923448623,-255.09173485,0.0001863,2]
[392761088,1761923448634,-500.0,0.00018658,10]
[392761089,1761923448644,-500.0,0.00018658,10]
[392761090,1761923448655,-500.0,0.00018658,10]
[392761091,1761923448665,-500.0,0.00018658,10]
[392761092,1761923448675,-500.0,0.00018658,10]
[392761093,1761923448685,-500.0,0.00018658,10]
[392761094,1761923448696,-507.60547542,0.00018658,10]
[392761095,1761923448706,-500.0,0.00018658,10]
[392761096,1761923448716,-500.0,0.00018658,10]
[392761097,1761923448726,-665.55827653,0.00018658,10]
[392761098,1761923448737,-500.0,0.00018658,10]
[392761099,1761923448747,-500.0,0.00018658,10]
[392761100,1761923448757,-500.0,0.00018658,10]
[392761101,1761923448767,-500.0,0.00018658,10]
[392761102,1761923448777,-500.0,0.00018658,10]
[392761103,1761923448787,-500.0,0.00018658,10]
[392761104,1761923448797,-500.0,0.00018658,10]
[392761105,1761923448807,-1000.0,0.0001866,2]
[392761106,1761923448817,-159.57,0.00018681,2]
[392761107,1761923448828,-1000.0,0.0001876,2]
[392761108,1761923448838,-436.69319137,0.00018767,2]
[392761109,1761923448848,-151.24,0.000188,2]
[392761110,1761923448859,-151.24,0.000188,2]
[392761111,1761923448869,-151.24,0.000188,2]
[392761112,1761923448880,-151.24,0.000188,2]
[392761113,1761923448890,-151.24,0.000188,2]
[392761114,1761923448900,-151.24,0.000188,2]
[392761115,1761923448910,-151.24,0.000188,2]
[392761116,1761923448920,-151.24,0.000188,2]
[392761117,1761923448930,-151.24,0.000188,2]
[392761118,1761923448940,-151.24,0.000188,2]
[392761119,1761923448950,-151.24,0.000188,2]
[392761120,1761923448959,-151.24,0.000188,2]
[392761121,1761923448970,-151.24,0.000188,2]
[392761122,1761923448982,-151.24,0.000188,2]
[392761123,1761923448992,-151.24,0.000188,2]
[392761124,1761923449002,-151.24,0.000188,2]
[392761125,1761923449013,-151.24,0.000188,2]
[392761126,1761923449025,-151.24,0.000188,2]
[392761127,1761923449035,-151.24,0.000188,2]
[392761128,1761923449045,-151.24,0.000188,2]
[392761129,1761923449056,-151.24,0.000188,2]
[392761130,1761923449066,-151.24,0.000188,2]
[392761131,1761923449076,-151.24,0.000188,2]
[392761132,1761923449086,-151.24,0.000188,2]
[392761133,1761923449096,-151.24,0.000188,2]
[392761134,1761923449106,-151.24,0.000188,2]
[392761135,1761923449116,-151.24,0.000188,2]
[392761136,1761923449126,-151.24,0.000188,2]
[392761137,1761923449136,-151.24,0.000188,2]
[392761138,1761923449145,-151.24,0.000188,2]
[392761139,1761923449155,-151.24,0.000188,2]
[392761140,1761923449165,-151.24,0.000188,2]
[392761141,1761923449175,-151.24,0.000188,2]
[392761142,1761923449185,-151.24,0.000188,2]
[392761143,1761923449195,-151.24,0.000188,2]
[392761144,1761923449205,-151.24,0.000188,2]
[392761145,1761923449217,-151.24,0.000188,2]
[392761146,1761923449227,-151.24,0.000188,2]
[392761147,1761923449237,-151.24,0.000188,2]
[392761148,1761923449247,-151.24,0.000188,2]
[392761149,1761923449256,-151.24,0.000188,2]
[392761150,1761923449267,-151.24,0.000188,2]
[392761151,1761923449278,-151.24,0.000188,2]
[392761152,1761923449287,-151.24,0.000188,2]
[392761153,1761923449297,-151.24,0.000188,2]
[392761154,1761923449307,-151.24,0.000188,2]
[392761155,1761923449317,-151.24,0.000188,2]
[392761156,1761923449327,-151.24,0.000188,2]
[392761157,1761923449337,-151.24,0.000188,2]
[392761158,1761923449347,-151.24,0.000188,2]
[392761159,1761923449359,-151.24,0.000188,2]
[392761160,1761923449370,-151.24,0.000188,2]
[392761161,1761923449382,-151.24,0.000188,2]
[392761162,1761923449393,-151.24,0.000188,2]
[392761163,1761923449402,-151.24,0.000188,2]
[392761164,1761923449412,-151.24,0.000188,2]
[392761165,1761923449422,-151.24,0.000188,2]
[392761166,1761923449431,-151.24,0.000188,2]
[392761167,1761923449441,-151.24,0.000188,2]
[392761168,1761923449450,-151.24,0.000188,2]
[392761169,1761923449461,-151.24,0.000188,2]
[392761170,1761923449471,-151.24,0.000188,2]
[392761171,1761923449481,-151.24,0.000188,2]
[392761172,1761923449491,-151.24,0.000188,2]
[392761173,1761923449501,-151.24,0.000188,2]
[392761174,1761923449511,-151.24,0.000188,2]
[392761175,1761923449521,-151.24,0.000188,2]
[392761176,1761923449531,-151.24,0.000188,2]
[392761177,1761923449541,-151.24,0.000188,2]
[392761178,1761923449551,-151.24,0.000188,2]
[392761179,1761923449561,-151.24,0.000188,2]
[392761180,1761923449571,-151.24,0.000188,2]
[392761181,1761923449581,-151.24,0.000188,2]
[392761182,1761923449591,-477.23814323,0.00018916,2]
[392761183,1761923449602,-1234.7142509,0.00018945,2]
[392761184,1761923449612,-182.3535949,0.00018945,2]
[392761185,1761923449813,-150.0,0.00018973,2]
[392761186,1761923449823,-300.0,0.00018999,2]
[392761187,1761923449832,-300.0,0.00018999,2]
[392761188,1761923449841,-5117.09683533,0.00019,2]
[392761189,1761923449850,-300.0,0.00019,3]
[392761190,1761923449860,-300.0,0.00019,2]
[392761191,1761923449869,-300.0,0.00019,2]
[392761192,1761923449879,-500.0,0.00019,2]
[392761193,1761923449888,-568.43730542,0.00019,2]
[392761194,1761923449897,-2486.85275823,0.00019,2]
[392761195,1761923449907,-2486.85275823,0.00019,2]
[392761196,1761923449915,-130407.33435359,0.00019,2]
[392761197,1761923449924,-151.0,0.00019,2]
[392761198,1761923449934,-151.0,0.00019,2]
[392761199,1761923449942,-300.0,0.00019,2]
[392761200,1761923449951,-1252.0,0.00019037,2]
[392761201,1761923449960,-772.52876704,0.00019068,2]
[392761202,1761923449977,-1510.85208282,0.00019068,2]
[392761203,1761923449988,-1500.0,0.00019068,2]
[392761204,1761923449997,-512.70758188,0.00019068,2]
[392761205,1761923450007,-1500.0,0.00019068,2]
[392761206,1761923450018,-840.43427254,0.00019068,2]
[392761207,1761923450027,-945.57701412,0.00019178,2]
[392761208,1761923450036,-151.0,0.00019178,2]
[392761209,1761923450045,-2000.27,0.00019178,2]
[392761210,1761923450056,-151.0,0.00019178,2]
[392761211,1761923450065,-151.0,0.00019178,2]
[392761212,1761923450075,-151.0,0.00019178,2]
[392761213,1761923450083,-271.446255,0.00019178,2]
[392761214,1761923450092,-1210.0,0.000192,5]
[392761215,1761923450102,-225.60039628,0.00019362,5]
[392761216,1761923450111,-396.25,0.00019436,2]
[392761217,1761923450120,-1000.0,0.00019438,2]
[392761218,1761923450129,-203.46321275,0.00019521,2]
[392761219,1761923450139,-151.0,0.00019613,2]
[392761220,1761923450148,-502.48144832,0.00019616,2]
[392761221,1761923450157,-2000.0,0.00019616,2]
[392761222,1761923450167,-2000.0,0.000197,2]
[392761223,1761923450176,-156.587,0.00019726,2]
[392761224,1761923450185,-159.57,0.00019848,2]
[392761225,1761923450194,-4872.13443084,0.000199,3]
[392761226,1761923450203,-300.0,0.00019949,2]
[392761227,1761923450212,-300.0,0.00019949,2]
[392761228,1761923450221,-361022.32332067,0.0001995,15]
[392761229,1761923450230,-27930.2115159,0.0001995,15]
[392761230,1761923450240,-151.0,0.0001995,7]
[392761231,1761923450249,-151.0,0.0001995,7]
[392761232,1761923450258,-151.0,0.0001995,7]
[392761233,1761923450268,-294.859152,0.0001995,7]
[392761234,1761923450277,-164.073454,0.0001995,7]
[392761235,1761923450287,-255.361696,0.0001995,7]
[392761236,1761923450296,-151.0,0.0001995,7]
[392761237,1761923450305,-284.446947,0.0001995,7]
[392761238,1761923450315,-151.0,0.0001995,7]
[392761239,1761923450324,-151.0,0.0001995,7]
[392761240,1761923450333,-181.631675,0.0001995,7]
[392761241,1761923450343,-151.0,0.0001995,7]
[392761242,1761923450352,-151.0,0.0001995,7]
[392761243,1761923450361,-160.349073,0.0001995,7]
[392761244,1761923450371,-151.0,0.0001995,7]
[392761245,1761923450381,-151.0,0.0001995,7]
[392761246,1761923450390,-151.0,0.0001995,7]
[392761247,1761923450399,-151.0,0.0001995,7]
[392761248,1761923450408,-130407.33435359,0.0001995,2]
[392761249,1761923450418,-1000.0,0.0001997,2]
[392761250,1761923450427,-7298.910078,0.0001998,2]
[392761251,1761923450436,-1000.0,0.0002,7]
[392761252,1761923450446,-4653.86638029,0.0002,2]
[392761253,1761923450455,-94333.75415827,0.0002,5]
[392761254,1761923450465,-203.71,0.0002,2]
[392761255,1761923450475,-2792.32367375,0.0002,2]
[392761256,1761923450485,-1000.0,0.0002,3]
[392761257,1761923450495,-1013.0,0.0002,3]
[392761258,1761923450503,-499.999999,0.0002,2]
[392761259,1761923450513,-1518.4069816,0.0002,2]
[392761260,1761923450527,-13674.26428767,0.0002,2]
[392761261,1761923450537,-30000.0,0.0002,2]
[392761262,1761923450547,-500.26204382,0.0002,2]
[392761263,1761923450556,-9655.02566734,0.0002,2]
[392761264,1761923450565,-1580.0,0.0002,3]
[392761265,1761923450574,-1433.25,0.0002,3]
[392761266,1761923450583,-2000.0,0.0002,2]
[392761267,1761923450592,-520.95146058,0.0002,2]
[392761268,1761923450602,-564.72471224,0.0002,14]
[392761269,1761923450611,-43150.40624955,0.0002,6]
[392761270,1761923450620,-2738.90462144,0.0002,3]
[392761271,1761923450630,-210507.0,0.0002,7]
[392761272,1761923450639,-1504.73261123,0.0002,2]
[392761273,1761923450649,-477.23814323,0.0002,7]
[392761274,1761923450660,-17553.04166517,0.0002,2]
[392761275,1761923450670,-477.23814323,0.0002,3]
[392761276,1761923450679,-154.1381,0.0002,7]
[392761277,1761923450688,-153.430862,0.0002,7]
[392761278,1761923450697,-151.0,0.0002,7]
[392761279,1761923450706,-156.689605,0.0002,7]
[392761280,1761923450715,-151.0,0.0002,7]
[392761281,1761923450725,-169.913545,0.0002,7]
[392761282,1761923450734,-161.075385,0.0002,7]
[392761283,1761923450743,-223.991355,0.0002,7]
[392761284,1761923450752,-151.0,0.0002,7]
[392761285,1761923450762,-165.368875,0.0002,7]
[392761286,1761923450771,-157.204111,0.0002,7]
[392761287,1761923450781,-151.0,0.0002,7]
[392761288,1761923450790,-151.0,0.0002,7]
[392761289,1761923450799,-151.0,0.0002,7]
[392761290,1761923450808,-153.994069,0.0002,7]
[392761291,1761923450817,-155.758876,0.0002,7]
[392761292,1761923450826,-151.0,0.0002,7]
[392761293,1761923450836,-151.0,0.0002,7]
[392761294,1761923450845,-151.0,0.0002,7]
[392761295,1761923450854,-156.853432,0.0002,7]
[392761296,1761923450863,-158.087144,0.0002,7]
[392761297,1761923450873,-292.281618,0.0002,7]
[392761298,1761923450882,-156.147751,0.0002,7]
[392761299,1761923450891,-151.0,0.0002,7]
[392761300,1761923450900,-252.863791,0.0002,7]
[392761301,1761923450910,-151.0,0.0002,7]
[392761302,1761923450918,-151.0,0.0002,7]
[392761303,1761923450928,-151.0,0.0002,7]
[392761304,1761923450937,-151.0,0.0002,7]
[392761305,1761923450946,-151.0,0.0002,7]
[392761306,1761923450955,-151.0,0.0002,7]
[392761307,1761923450964,-151.0,0.0002,7]
[392761308,1761923450978,-151.0,0.0002,7]
[392761309,1761923450987,-151.0,0.0002,7]
[392761310,1761923450996,-546.122706,0.0002,7]
[392761311,1761923451004,-151.0,0.0002,7]
[392761312,1761923451015,-546.122706,0.0002,7]
[392761313,1761923451025,-546.122706,0.0002,7]
[392761314,1761923451034,-546.122706,0.0002,7]
[392761315,1761923451045,-151.0,0.0002,7]
[392761316,1761923451054,-151.0,0.0002,7]
[392761317,1761923451063,-151.0,0.0002,7]
[392761318,1761923451072,-151.0,0.0002,7]
[392761319,1761923451081,-151.0,0.0002,7]
[392761320,1761923451091,-151.0,0.0002,7]
[392761321,1761923451100,-159.732126,0.0002,7]
[392761322,1761923451109,-160.947368,0.0002,7]
[392761323,1761923451118,-163.635493,0.0002,7]
[392761324,1761923451127,-151.0,0.0002,7]
[392761325,1761923451136,-151.0,0.0002,7]